[Event "Sardinia World Festival-A 2024"]
[Site "Orosei"]
[Date "2024.04.28"]
[Round "2.40"]
[White "Aizenberg, Benny"]
[Black "Akshit Kumar J"]
[Result "1-0"]
[ECO "C43"]
[WhiteElo "2409"]
[BlackElo "2172"]
[Annotator "TA"]
[PlyCount "83"]
[EventDate "2024.04.26"]
[EventType "swiss"]
[EventCountry "ITA"]
[SourceTitle "playchess.com"]
[Source "ChessBase"]
[SourceQuality "1"]
[TimeControl "40/5400+30:1800+30"]

{[%evp 9,83,0,3,6,5,6,0,0,5,7,2,0,21,16,20,-5,0,0,22,18,16,0,0,0,0,0,0,-28,-20,-56,0,-6,3,1,4,6,3,0,0,0,42,20,36,38,39,37,52,43,149,162,161,164,162,164,149,150,153,162,160,159,168,161,169,166,241,241,239,247,248,232,278,290,564,314,874,866]} 1. e4 {[%emt 0:00:05]} e5 {[%emt 0:01:01]} 2. Nf3 {[%emt 0:00:05]} Nf6 {[%emt 0:00:04]} 3. d4 {[%emt 0:00:06]} Nxe4 {[%emt 0:00:04]} 4. dxe5 {[%emt 0:00:05]} d5 {[%emt 0:00:03]} 5. Nbd2 {[%emt 0:00:09][%cal Bb1d2,Bd2f1,Bf1g3,Bg3f5][%mdl 32]} Qd7 {[%emt 0:00:05]} 6. Bd3 {[%emt 0:00:06]} Nc5 {[%emt 0:00:04]} 7. Be2 {[%emt 0:00:04]} Ne6 {[%emt 0:00:54]} 8. Nf1 {[%emt 0:00:10] The position is equal.} c5 {[%emt 0:07:51]} 9. Ng3 {[%emt 0:00:08]} Nc6 {[%emt 0:00:49]} 10. O-O {[%emt 0:00:31]} Be7 {[%emt 0:03:14]} (10... g6 $5) 11. Nf5 {[%emt 0:03:44]} O-O {[%emt 0:02:22]} 12. c3 {[%emt 0:06:01]} Rd8 {[%emt 0:03:04]} 13. Bd3 {[%emt 0:01:40]} c4 {[%emt 0:17:04]} 14. Bb1 {[%emt 0:18:46]} (14. Bc2 {simplifies} d4 15. N5xd4 Ncxd4 16. cxd4 Nxd4 17. Qxd4 Qxd4 18. Nxd4 Rxd4 19. Be3) 14... d4 {[%emt 0:12:37]} 15. cxd4 {[%emt 0:00:32]} Nexd4 {[%emt 0:01:18]} 16. N3xd4 {[%emt 0:08:04]} Nxd4 {[%emt 0:00:18]} 17. Nd6 {[%emt 0:00:20]} Nc6 {[%emt 0:19:51]} 18. Qc2 {[%emt 0:11:22]} (18. Bf5 $5 Qc7 $8 19. Bxh7+ (19. Bxc8 Raxc8 20. Nxc8 Rxd1 $17) 19... Kxh7 20. Qh5+ Kg8 21. Qxf7+ (21. Nxc4 $2 Be6 $19) 21... Kh7 22. Qh5+ Kg8 23. Qf7+ Kh7 24. Qh5+ Kg8 25. Qf7+ $11) 18... g6 {[%emt 0:00:22]} 19. Nxc4 {[%emt 0:02:22]} (19. Qxc4 $2 Nxe5 20. Qe2 Qxd6 $19 (20... Bxd6 $2 21. Bg5 $19)) 19... Qc7 {[%emt 0:09:59]} ({Black should try} 19... Qe6 $15 20. Qc3 b5) 20. Nd6 $132 {[%emt 0:04:37][%mdl 2048] White is fighting back} Bxd6 {[%emt 0:01:18]} 21. exd6 {[%emt 0:00:08]} Qxd6 {[%emt 0:00:08]} 22. Bg5 {[%emt 0:04:16]} Nd4 {[%emt 0:01:18]} 23. Qd1 {[%emt 0:02:48]} f6 {[%emt 0:03:42]} 24. Be3 {[%emt 0:00:10]} Kg7 {[%emt 0:01:26]} 25. Re1 {[%emt 0:02:11]} Nf5 {[%emt 0:10:28]} 26. Qxd6 {[%emt 0:01:53]} Nxd6 {[%emt 0:00:43]} 27. Bc2 {[%emt 0:02:51]} Bf5 {[%emt 0:01:47]} 28. Bb3 {[%emt 0:00:06]} Be4 {[%emt 0:01:49]} (28... Rd7 $14) 29. Bc5 $16 {[%emt 0:02:32] [#] Bxd6 is the strong threat. This pair of bishops is nice.} Bc6 {[%emt 0:00:06] Black is weak on the dark squares} 30. Re7+ {[%emt 0:00:11]} Kh6 {[%emt 0:00:47]} 31. Be3+ {[%emt 0:03:32]} g5 {[%emt 0:00:02]} 32. Bc2 {[%emt 0:00:24][%csl Gc2][%cal Re7h7] Repels Nf5. White is much more active.} Rd7 {[%emt 0:00:45]} 33. Rxd7 {[%emt 0:02:04]} Bxd7 {[%emt 0:00:01]} 34. Rd1 {[%emt 0:00:16]} Bf5 {[%emt 0:00:09]} 35. Rxd6 {[%emt 0:01:17]} Bxc2 {[%emt 0:00:02]} 36. Rxf6+ $18 {[%emt 0:00:29][%mdl 4096] Endgame. KRB-KRB} Kh5 {[%emt 0:01:50]} (36... Kg7 $142 37. Bxg5 Bd3) 37. f3 {[%emt 0:03:51] [#] Threatening mate with g4+.} Bg6 {[%emt 0:00:06]} 38. g4+ {[%emt 0:00:07]} Kh6 {[%emt 0:00:16]} 39. Rd6 {[%emt 0:01:09] Black must now prevent Bd4.} (39. h4 Kg7 40. hxg5 (40. Bxg5 Rf8 $18) 40... h6 $18) 39... Re8 {[%emt 0:01:14]} 40. Kf2 {[%emt 0:00:13][%cal Oe3d4] Hoping for Bd4!} ({Don't play} 40. Bxa7 Kg7 41. Rd7+ Kf6 42. Bd4+ (42. Rxb7 Bc2 $18) 42... Ke6 43. Rxb7 Bb1 $18) 40... Rc8 $2 {[%emt 0:00:11]} (40... Kg7 41. Rd7+ (41. Bxg5 Bb1 $18) (41. Bxa7 Bf7 $18) 41... Kf6 42. Rxb7 (42. Bxa7 Re7 $18) 42... a6 43. Rb6+ Re6 44. Bxg5+ Kf7) 41. h4 {[%emt 0:31:36][%cal Bh2h4,Bh4h5][%mdl 32] And now h5! would win.} Rf8 $2 {[%emt 0:07:45]} (41... Kg7 42. Bxg5 Be8 43. Bf6+ Kg8) 42. h5 {[%emt 0:00:00] Weighted Error Value: White=0.12 (very precise) /Black=0.26 (precise) .  Mistake:       	---       	Black=5      Inaccurate:     	White=3     	Black=1      OK:         	White=22    	Black=7      Best:        	White=2     	Black=7} 1-0

[Event "Sardinia World Festival-A 2024"]
[Site "Orosei"]
[Date "2024.04.28"]
[Round "2.41"]
[White "Cina`, Vittorio"]
[Black "Carlo, Emanuele"]
[Result "1/2-1/2"]
[ECO "D02"]
[WhiteElo "2165"]
[BlackElo "2363"]
[Annotator "RC"]
[PlyCount "124"]
[EventDate "2024.04.26"]
[EventType "swiss"]
[EventCountry "ITA"]
[SourceTitle "playchess.com"]
[Source "ChessBase"]
[SourceQuality "1"]
[TimeControl "40/5400+30:1800+30"]

1. Nf3 {[%emt 0:00:06]} Nf6 {[%emt 0:00:12]} 2. g3 {[%emt 0:00:11]} d5 {[%emt 0:00:42]} 3. Bg2 {[%emt 0:00:07]} g6 {[%emt 0:00:52]} 4. d4 {[%emt 0:04:11]} Bg7 {[%emt 0:01:49]} 5. O-O {[%emt 0:00:37]} c6 {[%emt 0:01:14]} 6. a4 {[%emt 0:01:26]} O-O {[%emt 0:00:36]} 7. Bf4 {[%emt 0:03:44]} Nbd7 {[%emt 0:04:21]} 8. a5 {[%emt 0:06:42]} h6 {[%emt 0:09:35]} 9. Qc1 {[%emt 0:06:47]} Kh7 {[%emt 0:06:15]} 10. c4 {[%emt 0:09:51]} Nh5 {[%emt 0:00:46]} 11. cxd5 {[%emt 0:02:37]} Nxf4 {[%emt 0:00:03]} 12. Qxf4 {[%emt 0:01:47]} cxd5 {[%emt 0:00:09]} 13. Rc1 {[%emt 0:02:44]} Nb8 {[%emt 0:10:48]} 14. Nbd2 {[%emt 0:05:25]} Nc6 {[%emt 0:01:36]} 15. Nb3 {[%emt 0:05:49]} a6 {[%emt 0:00:21]} 16. Qd2 {[%emt 0:08:31]} Qd6 {[%emt 0:03:01]} 17. Rc5 {[%emt 0:06:45]} e6 {[%emt 0:08:57]} 18. e3 {[%emt 0:02:56]} Bd7 {[%emt 0:01:40]} 19. Ne1 {[%emt 0:03:08]} Na7 {[%emt 0:02:13]} 20. Qb4 {[%emt 0:03:29]} Bb5 {[%emt 0:02:56]} 21. Bf1 {[%emt 0:03:24]} Nc6 {[%emt 0:00:09]} 22. Qd2 {[%emt 0:01:00]} Bxf1 23. Kxf1 {[%emt 0:00:02]} Rad8 {[%emt 0:11:37]} 24. Nd3 {[%emt 0:03:52]} e5 {[%emt 0:02:21]} 25. dxe5 {[%emt 0:01:22]} Nxe5 {[%emt 0:02:28]} 26. Nxe5 {[%emt 0:00:13]} Qxe5 {[%emt 0:00:01]} 27. Rd1 {[%emt 0:05:18]} Rc8 {[%emt 0:14:03]} 28. Rdc1 {[%emt 0:04:10]} Rxc5 {[%emt 0:01:28]} 29. Rxc5 {[%emt 0:00:33]} Rd8 {[%emt 0:01:06]} 30. Kg1 {[%emt 0:01:01]} Kg8 {[%emt 0:00:25]} 31. Rc2 {[%emt 0:01:16]} h5 {[%emt 0:00:59]} 32. h4 {[%emt 0:01:14]} Qe4 {[%emt 0:01:59]} 33. Nc5 {[%emt 0:01:30]} Qe7 {[%emt 0:00:53]} 34. b3 {[%emt 0:01:46]} d4 {[%emt 0:00:21]} 35. e4 {[%emt 0:01:23]} d3 {[%emt 0:03:55]} 36. Rc1 {[%emt 0:00:52]} Bd4 {[%emt 0:00:38]} 37. Nxd3 {[%emt 0:00:52]} Qxe4 {[%emt 0:00:02]} 38. Ne1 {[%emt 0:01:50]} Qe5 {[%emt 0:02:12]} 39. Qg5 {[%emt 0:00:22]} Qxg5 {[%emt 0:03:41]} 40. hxg5 {[%emt 0:00:02]} Rd5 {[%emt 0:00:48]} 41. Rc8+ {[%emt 0:31:29]} Kg7 {[%emt 0:30:21]} 42. Nf3 {[%emt 0:00:00]} Bb2 {[%emt 0:00:00]} 43. Rc2 {[%emt 0:00:00]} Be5 {[%emt 0:00:00]} 44. Re2 {[%emt 0:00:00]} Bd6 {[%emt 0:00:00]} 45. Rd2 {[%emt 0:00:00]} Rxd2 {[%emt 0:00:00]} 46. Nxd2 {[%emt 0:00:00]} Bb4 {[%emt 0:00:00]} 47. Nc4 {[%emt 0:00:00]} Kf8 {[%emt 0:00:00]} 48. Kg2 {[%emt 0:00:00]} Ke7 {[%emt 0:00:00]} 49. f4 {[%emt 0:00:00]} Ke6 {[%emt 0:00:00]} 50. Kf2 {[%emt 0:00:00]} Kd5 {[%emt 0:00:00]} 51. Ke3 {[%emt 0:00:52]} Bc3 {[%emt 0:00:00]} 52. Ke2 {[%emt 0:01:28]} Kc5 {[%emt 0:00:00]} 53. Ke3 {[%emt 0:00:52]} Kb4 {[%emt 0:00:00]} 54. Nd6 {[%emt 0:00:43]} Kxa5 {[%emt 0:00:00]} 55. Nxf7 {[%emt 0:01:49]} Kb4 {[%emt 0:00:00]} 56. Nd6 {[%emt 0:00:25]} b5 {[%emt 0:00:00]} 57. Ne4 {[%emt 0:00:50]} Bg7 {[%emt 0:00:00]} 58. Kd3 {[%emt 0:00:30]} Kxb3 {[%emt 0:05:28]} 59. Nc5+ {[%emt 0:00:09]} Ka3 {[%emt 0:00:41]} 60. Nxa6 {[%emt 0:00:29]} b4 {[%emt 0:00:22]} 61. Kc2 {[%emt 0:00:20]} Bf8 {[%emt 0:00:20]} 62. Nxb4 {[%emt 0:01:38]} Kxb4 {[%emt 0:03:40]} 1/2-1/2

[Event "Sardinia World Festival-A 2024"]
[Site "Orosei"]
[Date "2024.04.28"]
[Round "2.42"]
[White "Shearsby, Jude"]
[Black "Lewtak, Damian"]
[Result "1/2-1/2"]
[ECO "C00"]
[WhiteElo "2084"]
[BlackElo "2343"]
[Annotator "TA"]
[PlyCount "48"]
[EventDate "2024.04.26"]
[EventType "swiss"]
[EventCountry "ITA"]
[SourceTitle "playchess.com"]
[Source "ChessBase"]
[SourceQuality "1"]
[TimeControl "40/5400+30:1800+30"]

{[%evp 12,48,0,0,-25,-1,-9,-16,-9,-42,-16,-51,-51,-66,-56,-75,-33,-30,0,0,0,0,0,0,0,-38,-12,-33,6,6,8,26,59,-49,33,0,0,0,-3]} 1. e4 {[%emt 0:00:02]} c5 {[%emt 0:01:47]} 2. Nf3 {[%emt 0:00:03]} e6 {[%emt 0:00:06]} 3. Qe2 {[%emt 0:01:51]} Nc6 {[%emt 0:00:19]} 4. g3 {[%emt 0:00:05]} g6 {[%emt 0:00:21]} 5. Bg2 {[%emt 0:00:09]} Bg7 {[%emt 0:00:06]} 6. O-O {[%emt 0:00:21]} Nge7 {[%emt 0:01:47]} 7. c3 {[%emt 0:00:19][%cal Od2d4]} e5 {[%emt 0:01:16]} 8. Na3 {[%emt 0:00:29][%cal Od2d4]} O-O {[%emt 0:00:34]} 9. Nc2 {[%emt 0:00:54]} d5 {[%emt 0:03:43]} 10. d3 {[%emt 0:01:54]} d4 {[%emt 0:04:33]} 11. Nd2 {[%emt 0:07:43]} Be6 {[%emt 0:05:19]} 12. c4 {[%emt 0:04:32]} Qd7 {[%emt 0:01:46]} 13. f4 {[%emt 0:05:44]} exf4 {[%emt 0:05:53]} 14. gxf4 {[%emt 0:00:32]} f5 {[%emt 0:01:00]} 15. e5 {[%emt 0:01:00][%cal Ob2b4]} g5 {[%emt 0:01:44]} 16. b4 {[%emt 0:15:50]} gxf4 {[%emt 0:07:09]} (16... Nxb4 17. Nxb4 cxb4 18. a3 $14) 17. Nb3 {[%emt 0:00:59]} cxb4 {[%emt 0:03:19]} (17... Nxe5 18. Bxf4 Qd6 19. bxc5 $18 (19. Nxc5 Bc8 $16)) 18. Bxf4 {[%emt 0:01:11]} (18. a3 $5) 18... b6 {[%emt 0:02:10]} 19. Bg5 {[%emt 0:03:21] [#] Bxe7 is the strong threat.} Rad8 {[%emt 0:03:39]} (19... Bxe5 $2 {loses.} 20. Bxe7 Nxe7 21. Qxe5 $18) 20. Bxe7 {[%emt 0:06:07]} Nxe7 {[%emt 0:00:09]} 21. Nbxd4 {[%emt 0:00:24]} a5 {[%emt 0:16:04]} 22. Rae1 {[%emt 0:02:53]} ({White should try} 22. Nxe6 $14 Qxe6 23. d4) 22... Ng6 {[%emt 0:06:43]} (22... b5 $1 $15 23. cxb5 Bxa2) 23. Nxe6 {[%emt 0:09:47]} Qxe6 {[%emt 0:00:07]} 24. d4 {[%emt 0:00:16]} Kh8 {[%emt 0:09:31] Weighted Error Value: White=0.22 (precise) /Black=0.23 (precise) .  Mistake:       	White=1     	Black=1      Inaccurate:     	White=4     	Black=6      OK:         	White=7     	Black=6} 1/2-1/2

[Event "Sardinia World Festival-A 2024"]
[Site "Orosei"]
[Date "2024.04.28"]
[Round "2.43"]
[White "Roesch, Mario"]
[Black "Saine, Zachary"]
[Result "1-0"]
[ECO "D46"]
[WhiteElo "2207"]
[BlackElo "2032"]
[Annotator "NA RC"]
[PlyCount "63"]
[EventDate "2024.04.26"]
[EventType "swiss"]
[EventCountry "ITA"]
[SourceTitle "playchess.com"]
[Source "ChessBase"]
[SourceQuality "1"]
[TimeControl "40/5400+30:1800+30"]

1. Nf3 {[%emt 0:00:04]} d5 {[%emt 0:00:12]} 2. d4 {[%emt 0:00:12]} Nf6 {[%emt 0:00:06]} 3. c4 {[%emt 0:00:07]} e6 {[%emt 0:00:08]} 4. Nc3 {[%emt 0:00:27]} c6 {[%emt 0:01:07]} 5. e3 {[%emt 0:00:11]} Nbd7 {[%emt 0:00:29]} 6. Qc2 {[%emt 0:00:08]} Bd6 {[%emt 0:01:19]} 7. Bd3 {[%emt 0:00:12]} dxc4 {[%emt 0:02:41]} 8. Bxc4 {[%emt 0:00:06]} b5 {[%emt 0:01:07]} 9. Bd3 {[%emt 0:00:06]} Bb7 {[%emt 0:00:10]} 10. O-O {[%emt 0:00:22]} a6 {[%emt 0:06:56]} 11. e4 {[%emt 0:00:56]} e5 {[%emt 0:02:12]} 12. Bg5 {[%emt 0:00:55]} O-O {[%emt 0:04:03]} 13. dxe5 {[%emt 0:05:44]} Nxe5 {[%emt 0:00:21]} 14. Nxe5 {[%emt 0:00:08]} Bxe5 {[%emt 0:00:05]} 15. f4 {[%emt 0:01:18]} Bd4+ {[%emt 0:14:57]} 16. Kh1 {[%emt 0:00:29]} h6 {[%emt 0:01:56]} 17. Bh4 {[%emt 0:04:46]} Qb6 {[%emt 0:11:16]} 18. Ne2 {[%emt 0:29:02]} c5 {[%emt 0:18:17]} 19. Nxd4 {[%emt 0:11:02]} cxd4 {[%emt 0:00:02]} 20. Rac1 {[%emt 0:01:41]} Rfe8 {[%emt 0:10:43]} 21. Bxf6 {[%emt 0:13:52]} Qxf6 {[%emt 0:00:02]} 22. e5 {[%emt 0:00:52]} Qe6 {[%emt 0:01:39]} 23. b3 {[%emt 0:03:44]} Qd5 {[%emt 0:06:27]} 24. Rce1 {[%emt 0:03:08]} Rac8 {[%emt 0:01:31]} 25. Qd2 {[%emt 0:23:28]} Red8 {[%emt 0:03:48]} 26. f5 {[%emt 0:00:00]} Qc5 {[%emt 0:07:22]} 27. f6 {[%emt 0:00:00]} Qc3 {[%emt 0:02:20]} 28. Qe2 {[%emt 0:00:00]} g6 {[%emt 0:01:53]} 29. e6 {[%emt 0:00:00]} Bd5 {[%emt 0:00:04]} 30. Bxg6 {[%emt 0:00:00]} Bxe6 {[%emt 0:00:24]} 31. Bxf7+ {[%emt 0:00:00]} Kxf7 {[%emt 0:00:13]} 32. Qxe6+ {[%emt 0:00:00]} 1-0

[Event "Sardinia World Festival-A 2024"]
[Site "Orosei"]
[Date "2024.04.28"]
[Round "2.44"]
[White "Fileri, Francesco"]
[Black "Joel Paul Ganta"]
[Result "1/2-1/2"]
[ECO "C02"]
[WhiteElo "1855"]
[BlackElo "1969"]
[Annotator "NA RC"]
[PlyCount "96"]
[EventDate "2024.04.26"]
[EventType "swiss"]
[EventCountry "ITA"]
[SourceTitle "playchess.com"]
[Source "ChessBase"]
[SourceQuality "1"]
[TimeControl "40/5400+30:1800+30"]

1. d4 {[%emt 0:00:05]} d5 {[%emt 0:01:43]} 2. c4 {[%emt 0:00:16]} c6 {[%emt 0:00:03]} 3. cxd5 {[%emt 0:00:09]} cxd5 {[%emt 0:00:03]} 4. Nc3 {[%emt 0:00:15]} Nc6 {[%emt 0:00:04]} 5. e4 {[%emt 0:01:07]} e6 {[%emt 0:01:00]} 6. e5 {[%emt 0:02:27]} Qb6 {[%emt 0:00:02]} 7. Nf3 {[%emt 0:06:14]} Bd7 {[%emt 0:01:26]} 8. Bb5 {[%emt 0:03:17]} Nge7 {[%emt 0:00:51]} 9. Bxc6 {[%emt 0:22:50]} Nxc6 {[%emt 0:00:39]} 10. O-O {[%emt 0:06:57]} Be7 {[%emt 0:03:27]} 11. b3 {[%emt 0:11:59]} a6 {[%emt 0:03:06]} 12. Be3 {[%emt 0:06:43]} g5 {[%emt 0:02:05]} 13. Na4 {[%emt 0:05:45]} Qd8 {[%emt 0:05:46]} 14. Kh1 {[%emt 0:06:59]} b5 {[%emt 0:08:18]} 15. Nb2 {[%emt 0:02:19]} g4 {[%emt 0:02:58]} 16. Ng1 {[%emt 0:00:17]} Rg8 {[%emt 0:01:14]} 17. Ne2 {[%emt 0:00:41]} h5 {[%emt 0:00:34]} 18. Nd3 {[%emt 0:00:44]} Qb6 {[%emt 0:01:17]} 19. a4 {[%emt 0:01:58]} b4 {[%emt 0:00:32]} 20. a5 {[%emt 0:02:22]} Nxa5 {[%emt 0:01:08]} 21. Nb2 {[%emt 0:00:17]} Nb7 {[%emt 0:08:35]} 22. f4 {[%emt 0:00:26]} h4 {[%emt 0:05:23]} 23. Rc1 {[%emt 0:04:42]} Na5 {[%emt 0:04:30]} 24. f5 {[%emt 0:06:52]} exf5 {[%emt 0:00:39]} 25. Na4 {[%emt 0:03:02]} Bxa4 {[%emt 0:01:28]} 26. bxa4 {[%emt 0:00:08]} Nc4 {[%emt 0:00:48]} 27. Rxc4 {[%emt 0:01:42]} dxc4 {[%emt 0:01:15]} 28. a5 {[%emt 0:00:57]} Qxa5 {[%emt 0:02:38]} 29. d5 {[%emt 0:00:19]} h3 {[%emt 0:02:47]} 30. d6 {[%emt 0:02:38]} hxg2+ {[%emt 0:02:20]} 31. Kxg2 {[%emt 0:00:11]} O-O-O {[%emt 0:01:14]} 32. Qd4 {[%emt 0:00:29]} Qb5 {[%emt 0:05:58]} 33. Rc1 {[%emt 0:00:43]} Qb7+ {[%emt 0:04:53]} 34. Kg1 {[%emt 0:00:33]} c3 {[%emt 0:00:34]} 35. Nxc3 {[%emt 0:00:18]} bxc3 {[%emt 0:00:02]} 36. Rxc3+ {[%emt 0:00:09]} Kd7 {[%emt 0:03:31]} 37. Rc7+ {[%emt 0:00:25]} Qxc7 {[%emt 0:00:02]} 38. dxc7+ {[%emt 0:00:07]} Kxc7 {[%emt 0:00:01]} 39. Qa7+ {[%emt 0:00:32]} Kc6 {[%emt 0:00:28]} 40. Qxe7 {[%emt 0:00:26]} Kd5 {[%emt 0:00:02]} 41. Bf4 {[%emt 0:31:38]} Ke4 {[%emt 0:30:28]} 42. Bg3 {[%emt 0:00:57]} f4 {[%emt 0:07:04]} 43. e6 {[%emt 0:00:00]} fxe6 {[%emt 0:00:00]} 44. Qxe6+ {[%emt 0:00:00]} Kd4 {[%emt 0:07:37]} 45. Bxf4 {[%emt 0:00:00]} Ra8 {[%emt 0:03:03]} 46. Qe5+ {[%emt 0:00:00]} Kc4 {[%emt 0:00:22]} 47. Qe4+ {[%emt 0:00:00]} Kc5 {[%emt 0:01:05]} 48. Qe5+ {[%emt 0:00:00]} Kc4 {[%emt 0:00:10]} 1/2-1/2

[Event "Sardinia World Festival-A 2024"]
[Site "Orosei"]
[Date "2024.04.28"]
[Round "2.45"]
[White "Nassa, Nicolas"]
[Black "Molinari, Carlo"]
[Result "1/2-1/2"]
[ECO "C55"]
[WhiteElo "1969"]
[BlackElo "1867"]
[Annotator "TA"]
[PlyCount "34"]
[EventDate "2024.04.26"]
[EventType "swiss"]
[EventCountry "ITA"]
[SourceTitle "playchess.com"]
[Source "ChessBase"]
[SourceQuality "1"]
[TimeControl "40/5400+30:1800+30"]

{[%evp 13,34,13,14,0,26,24,27,31,50,26,43,22,28,20,0,-6,0,0,5,0,9,0,9]} 1. e4 {[%emt 0:00:05]} e5 {[%emt 0:00:10]} 2. Nf3 {[%emt 0:00:11]} Nc6 {[%emt 0:02:09]} 3. Bc4 {[%emt 0:00:06]} Nf6 {[%emt 0:01:04]} 4. d3 {[%emt 0:00:04]} Be7 {[%emt 0:01:15]} 5. Nbd2 {[%emt 0:00:15]} O-O {[%emt 0:00:43]} 6. O-O {[%emt 0:00:15]} d6 {[%emt 0:00:53]} 7. c3 {[%emt 0:00:06]} Na5 {[%emt 0:08:43]} 8. Bb5 {[%emt 0:00:16][%cal Bc4b5,Bb5a4,Ba4c2][%mdl 32]} c6 {[%emt 0:00:40]} 9. Ba4 {[%emt 0:00:08]} b5 {[%emt 0:01:01]} 10. Bc2 {[%emt 0:00:05] White has an edge.} Qc7 {[%emt 0:07:28]} 11. Re1 {[%emt 0:03:46]} c5 {[%emt 0:05:21]} 12. Nf1 {[%emt 0:00:53]} Nc6 {[%emt 0:02:12]} 13. Ng3 {[%emt 0:04:08]} Be6 {[%emt 0:05:03] The position is equal.} 14. Bg5 {[%emt 0:20:18]} Rfe8 {[%emt 0:10:57]} 15. Nh4 {[%emt 0:08:01]} g6 {[%emt 0:09:11] Wards off Nhf5} 16. Qd2 {[%emt 0:08:03]} Qd8 {[%emt 0:03:50]} (16... Qd7 $5) 17. Nf3 {[%emt 0:12:21]} Bg4 {[%emt 0:10:48] Weighted Error Value: White=0.05 (flawless) /Black=0.06 (flawless) .  Inaccurate:     	---       	Black=1      OK:         	White=5     	Black=4} 1/2-1/2

[Event "Sardinia World Festival-A 2024"]
[Site "Orosei"]
[Date "2024.04.28"]
[Round "2.46"]
[White "Solaroli, Riccardo"]
[Black "Wang, Shanshan"]
[Result "1-0"]
[ECO "B50"]
[WhiteElo "1828"]
[BlackElo "1966"]
[Annotator "NA RC"]
[PlyCount "140"]
[EventDate "2024.04.26"]
[EventType "swiss"]
[EventCountry "ITA"]
[SourceTitle "playchess.com"]
[Source "ChessBase"]
[SourceQuality "1"]
[TimeControl "40/5400+30:1800+30"]

1. e4 {[%emt 0:00:03]} c5 {[%emt 0:00:08]} 2. Nf3 {[%emt 0:00:08]} d6 {[%emt 0:00:05]} 3. c3 {[%emt 0:00:06]} Nf6 {[%emt 0:00:36]} 4. Be2 {[%emt 0:00:26]} g6 {[%emt 0:00:27]} 5. O-O {[%emt 0:00:23]} Bg7 {[%emt 0:00:05]} 6. Re1 {[%emt 0:00:15]} O-O {[%emt 0:00:07]} 7. Bf1 {[%emt 0:00:05]} Nc6 {[%emt 0:01:23]} 8. d4 {[%emt 0:01:00]} Bg4 {[%emt 0:03:46]} 9. dxc5 {[%emt 0:04:33]} dxc5 {[%emt 0:02:58]} 10. Qxd8 {[%emt 0:04:17]} Rfxd8 {[%emt 0:00:23]} 11. Nbd2 {[%emt 0:03:24]} a6 {[%emt 0:01:18]} 12. h3 {[%emt 0:02:02]} Bxf3 {[%emt 0:07:11]} 13. Nxf3 {[%emt 0:00:16]} b5 {[%emt 0:00:40]} 14. a4 {[%emt 0:14:43]} b4 {[%emt 0:02:43]} 15. e5 {[%emt 0:15:44]} Nd5 {[%emt 0:03:38]} 16. c4 {[%emt 0:05:03]} Nc7 {[%emt 0:00:56]} 17. b3 {[%emt 0:07:59]} Ne6 {[%emt 0:01:13]} 18. Rb1 {[%emt 0:03:25]} Ned4 {[%emt 0:03:19]} 19. Nxd4 {[%emt 0:01:07]} Nxd4 {[%emt 0:00:51]} 20. f4 {[%emt 0:03:39]} Rd7 {[%emt 0:03:28]} 21. Be3 {[%emt 0:10:24]} Nc2 {[%emt 0:06:48]} 22. Re2 {[%emt 0:00:07]} Nxe3 {[%emt 0:00:05]} 23. Rxe3 {[%emt 0:00:04]} Rd4 {[%emt 0:00:13]} 24. g3 {[%emt 0:04:07]} Rad8 {[%emt 0:04:35]} 25. Rbe1 {[%emt 0:02:24]} e6 {[%emt 0:02:17]} 26. Kf2 {[%emt 0:06:09]} h6 {[%emt 0:02:19]} 27. Bg2 {[%emt 0:03:16]} a5 {[%emt 0:03:30]} 28. Re4 {[%emt 0:01:02]} Rxe4 {[%emt 0:04:41]} 29. Rxe4 {[%emt 0:00:37]} g5 {[%emt 0:00:46]} 30. Ke2 {[%emt 0:01:10]} Kf8 {[%emt 0:01:35]} 31. Re3 {[%emt 0:00:34]} gxf4 {[%emt 0:03:17]} 32. gxf4 {[%emt 0:00:07]} Rd4 {[%emt 0:01:34]} 33. Re4 {[%emt 0:00:33]} Rd7 {[%emt 0:01:33]} 34. Re3 {[%emt 0:00:30]} Ra7 {[%emt 0:14:06]} 35. Rd3 {[%emt 0:00:40]} Ke7 {[%emt 0:04:00]} 36. Bf3 {[%emt 0:01:24]} f6 {[%emt 0:00:29]} 37. exf6+ {[%emt 0:00:34]} Bxf6 {[%emt 0:00:29]} 38. Bg4 {[%emt 0:04:35]} Bd4 {[%emt 0:01:24]} 39. Kf3 {[%emt 0:01:13]} Kf6 {[%emt 0:00:53]} 40. Rd2 {[%emt 0:01:14]} Re7 {[%emt 0:02:47]} 41. Re2 {[%emt 0:01:38]} e5 {[%emt 0:01:29]} 42. fxe5+ {[%emt 0:01:04]} Bxe5 {[%emt 0:00:08]} 43. Rd2 {[%emt 0:02:39]} Bd4 {[%emt 0:01:08]} 44. Re2 {[%emt 0:00:12]} Rf7 {[%emt 0:03:08]} 45. Bh5 {[%emt 0:05:29]} Rg7 {[%emt 0:02:00]} 46. Bg4 {[%emt 0:04:37]} Kg5 {[%emt 0:01:41]} 47. Be6 {[%emt 0:05:44]} Re7 {[%emt 0:04:31]} 48. Kg3 {[%emt 0:08:30]} h5 {[%emt 0:01:58]} 49. Kf3 {[%emt 0:01:17]} Kf6 {[%emt 0:01:59]} 50. Bd5 {[%emt 0:00:29]} Be5 {[%emt 0:04:58]} 51. Rg2 {[%emt 0:01:38]} h4 {[%emt 0:03:27]} 52. Rg4 {[%emt 0:00:08]} Rh7 {[%emt 0:01:27]} 53. Be4 {[%emt 0:00:32]} Rh8 {[%emt 0:00:29]} 54. Rg6+ {[%emt 0:00:38]} Ke7 {[%emt 0:00:12]} 55. Ra6 {[%emt 0:00:32]} Rf8+ {[%emt 0:00:46]} 56. Ke2 {[%emt 0:00:22]} Bd4 {[%emt 0:04:54]} 57. Bf3 {[%emt 0:00:55]} Kd7 {[%emt 0:01:12]} 58. Rxa5 {[%emt 0:01:18]} Re8+ {[%emt 0:00:08]} 59. Kd1 {[%emt 0:00:41]} Re3 {[%emt 0:00:39]} 60. Bg4+ {[%emt 0:00:14]} Kc7 {[%emt 0:00:23]} 61. Rb5 {[%emt 0:00:56]} Rxb3 {[%emt 0:00:19]} 62. a5 {[%emt 0:00:36]} Ra3 {[%emt 0:00:21]} 63. Bf5 {[%emt 0:00:45]} b3 {[%emt 0:01:24]} 64. Be4 {[%emt 0:00:34]} b2 {[%emt 0:00:41]} 65. Bf5 {[%emt 0:01:18]} Kd6 {[%emt 0:01:40]} 66. Rb6+ {[%emt 0:00:42]} Ke5 {[%emt 0:00:01]} 67. Bg4 {[%emt 0:00:33]} Ra1+ {[%emt 0:00:22]} 68. Kd2 {[%emt 0:00:31]} b1=Q {[%emt 0:01:03]} 69. Rxb1 {[%emt 0:00:27]} Rxb1 {[%emt 0:00:02]} 70. a6 {[%emt 0:00:15]} Ra1 {[%emt 0:00:05]} 1-0